bitfinex-derivatives/quotes_ETHF0:USTF0_20250528
["timestamp","ask_amount","ask_price","bid_price","bid_amount"]
[1748391541010,7.52010668,2650.0,2649.2,1.88646]
[1748391541214,3.2078,2649.6,2649.5,0.75447]
[1748391541516,3.96227,2649.6,2649.5,0.75447]
[1748391542215,3.96227,2649.6,2649.5,2.02407]
[1748391543522,0.75458,2649.2,2648.5,3.2078]
[1748391543715,5.76424,2649.1,2648.6,5.1316]
[1748391544020,0.75472,2648.7,2648.6,5.88634]
[1748391544318,0.75472,2648.7,2648.6,5.1316]
[1748391544521,2.00692,2648.7,2648.6,5.1316]
[1748391544722,2.00692,2648.7,2648.6,5.88635]
[1748391545517,2.00692,2648.7,2648.6,5.1316]
[1748391545716,1.2522,2648.7,2648.3,3.862]
[1748391546024,0.75497,2647.9,2647.7,4.61699]
[1748391546216,3.2078,2648.1,2647.8,4.61698]
[1748391546417,0.75495,2647.9,2647.8,5.2027]
[1748391547125,1.98965,2647.9,2647.8,5.95768]
[1748391547326,1.2347,2647.9,2647.8,5.95768]
[1748391547729,1.98965,2647.9,2647.8,5.95768]
[1748391548027,0.6555,2648.0,2647.9,0.75495]
[1748391548328,0.6555,2648.0,2647.9,1.2548]
[1748391548329,1.41042,2648.0,2647.9,1.2548]
[1748391548727,3.2078,2648.1,2648.0,0.75492]
[1748391549022,0.6518,2648.2,2647.9,1.2548]
[1748391549229,0.7549,2648.1,2648.0,0.75492]
[1748391549419,3.2078,2648.1,2648.0,0.75492]
[1748391549919,3.2078,2648.1,2648.0,2.09652]
[1748391550914,4.4607,2648.1,2648.0,0.75492]
[1748391551122,5.21559,2648.1,2648.0,0.75492]
[1748391551328,0.75492,2648.0,2647.9,1.2548]
[1748391551529,2.00782,2648.0,2647.9,1.2548]
[1748391551726,2.00782,2648.0,2647.9,17.573]
[1748391552432,2.00782,2648.0,2647.9,3.863]
[1748391554233,1.2529,2648.0,2647.6,0.75503]
[1748391554426,0.75509,2647.4,2647.3,0.6805]
[1748391554732,0.75509,2647.4,2647.3,5.96242]
[1748391554933,0.75509,2647.4,2646.8,38.039]
[1748391554934,8.2078,2647.4,2646.1,0.29650621]
[1748391555123,1.88817,2646.8,2646.2,1.3443]
[1748391555329,3.2078,2646.3,2646.2,2.09974]
[1748391555627,7.0708,2646.3,2645.2,3.2078]
[1748391555829,3.2078,2645.5,2643.6,3.53749991]
[1748391556033,0.00566786,2644.8,2643.7,1.3405]
[1748391556222,3.2078,2643.8,2643.7,2.09665]
[1748391556429,3.2078,2644.3,2643.7,2.09665]
[1748391556628,2.43806,2643.8,2643.7,2.09665]
[1748391556930,44.01346786,2644.8,2644.1,1.8901]
[1748391557230,44.01346786,2644.8,2644.2,5.2035]
[1748391557530,44.01346786,2644.8,2644.6,0.75589]
[1748391557724,0.00566786,2644.8,2644.7,5.96136]
[1748391557931,3.2078,2645.6,2645.1,0.75575]
[1748391558126,3.2078,2645.6,2645.2,3.2078]
[1748391558325,3.2078,2645.3,2645.2,0.75572]
[1748391558526,3.2078,2645.3,2644.7,5.93367]
[1748391558527,3.2078,2645.3,2644.7,4.044]
[1748391558740,3.2078,2645.3,2645.2,0.75572]
[1748391559137,3.2078,2645.3,2645.1,0.75573]
[1748391559629,3.2078,2645.3,2645.2,0.07339423]
[1748391561441,3.2078,2645.3,2645.2,0.82911423]
[1748391561742,3.2078,2645.3,2645.2,0.07339423]
[1748391561939,3.2078,2645.3,2645.2,0.82911423]
[1748391562131,0.00566786,2645.5,2645.4,0.75566]
[1748391563241,7.86e-06,2645.5,2645.4,5.75566]
[1748391563435,7.86e-06,2645.5,2645.4,0.75566]
[1748391564835,7.86e-06,2645.5,2645.4,5.75566]
[1748391566739,7.86e-06,2645.5,2645.4,27.80566]
[1748391568036,7.86e-06,2645.5,2645.4,4.80166]
[1748391571344,7.86e-06,2645.5,2645.4,6.05816]
[1748391574141,7.86e-06,2645.5,2645.4,9.26596]
[1748391574840,7.86e-06,2645.5,2645.4,27.24196]
[1748391575244,7.86e-06,2645.5,2645.4,5.21996]
[1748391575442,7.86e-06,2645.5,2645.1,2.52744]
[1748391575443,8.20780786,2645.5,2645.1,4.046]
[1748391575646,2.00038,2645.4,2645.2,0.75571]
[1748391576140,0.75572,2645.3,2645.1,4.046]
[1748391576349,3.96352,2645.2,2645.1,4.046]
[1748391576644,0.75575,2645.1,2645.0,0.00566786]
[1748391576840,2.00045,2645.1,2645.0,0.00566786]
[1748391577641,7.00045,2645.1,2645.0,0.00566786]
[1748391578542,7.00045,2645.1,2645.0,0.76144786]
[1748391578742,7.00045,2645.1,1406.0,1.73915764]
[1748391578743,1.88953,2644.9,2643.6,4.047]
[1748391578945,3.2078,2643.8,2643.6,4.047]
[1748391579149,1.2848,2643.7,2643.4,1.3291]
[1748391579345,3.2078,2643.5,2643.1,3.2078]
[1748391579644,3.2078,2643.5,2643.0,0.00566786]
[1748391579842,3.2078,2643.5,2643.4,0.75624]
[1748391580041,0.00566786,2643.6,2643.5,0.75621]
[1748391580636,0.00566786,2643.6,2643.5,18.81321]
[1748391581143,0.00566786,2643.6,2643.5,20.17801]
[1748391581847,0.00566786,2643.6,2643.5,24.22601]
[1748391582050,0.00566786,2643.6,2643.5,2.12101]
[1748391582550,0.00566786,2643.6,2643.5,24.22101]
[1748391582754,7.86e-06,2643.6,2643.5,29.22101]
[1748391585346,7.86e-06,2643.6,2643.5,24.22101]
[1748391585547,7.86e-06,2643.6,2643.5,24.19801]
[1748391587862,0.88766786,2643.8,2643.7,0.75615]
[1748391588152,7.86e-06,2643.8,2643.7,3.96395]
[1748391588348,7.86e-06,2644.0,2643.9,0.75609]
[1748391588652,7.86e-06,2644.0,2643.9,4.87009]
[1748391592254,5.72e-06,2644.2,2644.1,0.75603]
[1748391592451,5.72e-06,2644.2,2644.1,3.96383]
[1748391594054,5.72e-06,2644.2,2644.1,26.05083]
[1748391595659,5.72e-06,2644.2,2644.1,3.96383]
[1748391595860,5.72e-06,2644.2,2644.1,26.03483]
[1748391596858,5.72e-06,2644.2,2644.1,3.96383]
[1748391597661,5.72e-06,2644.2,2644.1,26.02283]
[1748391598457,5.72e-06,2644.2,2644.1,3.96383]
[1748391598663,5.72e-06,2644.2,2644.1,26.01583]
[1748391601257,5.72e-06,2644.2,2644.1,3.96383]
[1748391601462,0.75601572,2644.2,2644.1,4.114]
[1748391601961,1.36840572,2644.2,2644.1,4.87003]
[1748391602168,9.57620572,2644.2,2643.9,0.75607]
[1748391602458,40.8,2644.1,2643.2,1.89073]
[1748391602767,0.75628,2643.3,2643.0,4.11966786]
[1748391602960,1.3684,2643.2,2643.1,0.7563]
[1748391603664,3.2078,2643.9,2643.8,0.75611]
[1748391603955,1.3684,2643.8,2643.7,0.75613]
[1748391604353,1.3684,2643.8,2643.7,4.94352423]
[1748391604858,6.3684,2643.8,2643.7,4.94354423]
[1748391605264,1.3684,2643.8,2643.7,4.94354423]
[1748391605459,1.3684,2643.8,2643.7,4.87015]
[1748391606164,1.3684,2643.8,2642.9,3.7818]
[1748391606165,6.3684,2643.8,2643.2,4.114]
[1748391606359,3.2078,2643.4,2643.3,0.75626]
[1748391606554,0.75616,2643.7,2643.3,0.75626]
[1748391606759,3.2078,2643.7,2643.6,0.75617]
[1748391607064,3.2078,2643.7,2643.5,0.75618]
[1748391607260,3.2078,2643.7,2643.6,0.75617]
[1748391608262,3.2078,2643.8,2643.5,4.114]
[1748391608562,3.96394,2643.8,2643.3,0.75626]
[1748391608763,3.96394,2643.8,2643.5,0.75618]
[1748391608963,3.96394,2643.8,2643.6,0.75616]
[1748391609366,8.2078,2643.8,2643.7,0.75615]
[1748391609668,3.2078,2643.8,2643.7,0.75615]
[1748391611170,8.2078,2643.8,2643.2,1.2385]
[1748391611363,3.2078,2643.5,2643.4,0.75621]
[1748391612767,3.96394,2643.8,2643.3,6.00561]
[1748391612974,3.2078,2643.8,2643.3,6.00561]
[1748391613173,0.75615,2643.7,2643.6,0.75615]
[1748391613569,3.2078,2643.8,2643.7,0.75613]
[1748391613876,3.9639,2643.8,2643.7,0.75613]
[1748391614078,8.2078,2643.8,2643.3,4.115]
[1748391614275,3.2078,2643.5,2643.4,0.75622]
[1748391614770,3.2078,2643.8,2643.7,0.75611]
[1748391615167,3.9639,2643.8,2643.7,0.75611]
[1748391616973,3.96392,2643.8,2643.7,0.75611]
[1748391617378,3.2078,2643.8,2643.7,0.75611]
[1748391619574,3.96392,2643.8,2643.7,0.75611]
[1748391620575,3.96392,2643.8,2643.7,0.82950423]
[1748391620778,3.96392,2643.8,2643.7,0.07339423]
[1748391621176,8.96392,2643.8,2643.7,0.07339423]
[1748391623373,3.96392,2643.8,2643.7,0.07339423]
[1748391625377,3.96392,2643.8,2643.4,1.3084]
[1748391625378,0.75632,2643.1,2643.0,0.00566786]
[1748391625581,3.96412,2643.1,2643.0,0.00566786]
[1748391625881,3.2078,2643.4,2643.3,0.75626]
[1748391626182,3.2078,2643.4,2643.1,1.89075]
[1748391626183,40.8,2643.5,2643.4,0.75623]
[1748391626585,3.2078,2643.7,2643.6,0.75617]
[1748391626978,3.96394,2643.7,2643.6,0.75617]
[1748391627287,3.2078,2643.7,2643.6,0.75617]
[1748391627580,3.96397,2643.7,2643.6,0.75617]
[1748391627880,3.2078,2643.7,2643.6,0.75617]
[1748391628775,3.96395,2643.7,2643.3,1.253]
[1748391628974,3.2078,2643.7,2643.6,0.75617]
[1748391629172,3.96397,2643.7,2643.6,0.75617]
[1748391629380,3.2078,2643.7,2643.6,0.75617]
[1748391629775,5.72e-06,2644.2,2643.6,18.70217]
[1748391629975,5.72e-06,2644.2,2644.1,0.75603]
[1748391630280,5.72e-06,2644.2,2644.1,4.84403]
[1748391630475,6.15836375,2644.2,2643.1,2.47755829]
[1748391630677,3.2078,2643.6,2643.3,0.75626]
[1748391630882,0.75625,2643.4,2643.2,4.7627]
[1748391631078,3.2078,2643.6,2643.2,4.7627]
[1748391631281,3.2078,2643.3,2643.2,4.7627]
[1748391631885,3.2078,2643.3,2643.2,5.51899]
[1748391633082,3.3016,2643.3,2643.2,5.51899]
[1748391633686,3.3016,2643.3,2643.2,6.77019]
[1748391634787,3.3016,2643.3,2643.2,6.84358423]
[1748391635791,3.3016,2643.3,2643.2,6.08729423]
[1748391636083,3.3016,2643.3,2643.2,1.99929423]
[1748391636384,0.75632,2643.1,2643.0,0.00566786]
[1748391637187,1.99752,2643.1,2643.0,0.00566786]
[1748391637987,0.75649,2642.5,2642.3,0.75653]
[1748391638291,26.53910275,2642.4,2641.0,0.00532013]
[1748391638582,26.53910275,2642.4,2641.3,1.3567]
[1748391638583,3.2078,2641.7,2641.3,1.3567]
[1748391638783,3.2078,2641.9,2641.7,0.7567]
[1748391638986,3.2078,2641.9,2641.8,5.4457]
[1748391639190,0.00566786,2642.1,2641.8,5.4457]
[1748391639483,3.2078,2641.9,2641.8,6.20239]
[1748391639682,0.00566786,2642.1,2642.0,0.75663]
[1748391639877,3.2078,2642.5,2642.4,0.75652]
[1748391640079,3.2078,2642.5,2642.4,4.84552]
[1748391640284,3.2078,2642.5,2642.4,4.089]
[1748391640485,3.96431,2642.5,2642.3,4.089]
[1748391640693,1.2612,2642.4,2642.3,4.089]
[1748391641294,1.2612,2642.4,2642.3,5.42]
[1748391641490,3.2078,2642.5,2642.4,0.75652]
[1748391641702,4.5116,2642.5,2642.2,4.089]
[1748391642195,4.5116,2642.5,2642.4,0.75652]
[1748391642402,4.5116,2642.5,2642.3,2.08753]
[1748391642592,3.2078,2642.5,2642.4,0.75652]
[1748391642901,3.2078,2642.5,2642.4,2.08752]
[1748391643099,3.2078,2642.5,2642.4,6.17652]
[1748391643399,4.5116,2642.5,2642.4,6.17652]
[1748391644201,3.2078,2642.5,2642.4,6.17652]
[1748391644997,3.2078,2642.5,2642.4,2.08752]
[1748391645199,3.2078,2642.5,2642.4,6.17652]
[1748391645599,3.2078,2642.5,2642.4,5.42]
[1748391645795,4.5233,2642.5,2642.4,6.17652]
[1748391646208,3.2078,2642.5,2642.4,6.17652]
[1748391647099,5.27979,2642.5,2642.4,5.42]
[1748391647408,5.27979,2642.5,2642.4,4.089]
[1748391647707,4.5233,2642.5,2642.4,4.84552]
[1748391648003,3.2078,2642.5,2642.4,4.84552]
[1748391649911,3.2078,2642.5,2642.4,4.91891423]
[1748391652604,0.00566786,2642.6,2642.5,0.75649]
[1748391652918,3.2078,2643.1,2643.0,0.75634]
[1748391653114,3.2078,2643.1,2643.0,4.93534]
[1748391653316,3.2078,2643.1,2643.0,7.55794]
[1748391655213,0.09946786,2643.3,2643.0,7.55794]
[1748391655214,0.09946786,2643.3,2643.2,0.75629]
[1748391655807,0.09946786,2643.3,2643.2,18.90729]
[1748391656012,0.09946786,2643.3,2643.2,23.90729]
[1748391658021,0.09946786,2643.3,2643.2,5.75629]
[1748391658221,0.09946786,2643.3,2643.2,28.06629]
[1748391658418,0.09946786,2643.3,2643.2,23.06629]
[1748391660515,0.09946786,2643.3,2643.2,28.06629]
[1748391661117,0.09946786,2643.3,2643.0,2.62826786]
[1748391661322,0.75632,2643.1,2643.0,0.00566786]
[1748391661717,5.75632,2643.1,2643.0,0.00566786]
[1748391662021,2.04082,2643.1,2643.0,0.00566786]
[1748391662218,1.2845,2643.1,2643.0,0.76200786]
[1748391662419,3.21346786,2643.3,2643.2,0.75629]
[1748391663325,3.21346786,2643.3,2643.1,2.67471]
[1748391663519,3.96973786,2643.3,2643.2,0.75629]
[1748391663924,3.32906786,2643.3,2643.2,0.75629]
[1748391666326,3.32906786,2643.3,2643.2,0.82968423]
[1748391667231,4.08532786,2643.3,2643.2,0.07339423]
[1748391668327,9.08532786,2643.3,2643.2,0.07339423]
[1748391668724,49.88532786,2643.3,2643.2,0.07339423]
[1748391671231,44.88532786,2643.3,2643.2,0.07339423]
[1748391672225,44.12906786,2643.3,2643.2,0.82968423]
[1748391672431,3.32906786,2643.3,2643.2,5.00768423]
[1748391673229,7.86e-06,2643.3,2643.2,31.28048423]
[1748391673829,3.2078,2644.2,2644.1,0.75603]
[1748391674033,3.2078,2644.2,2644.1,23.01103]
[1748391675030,0.00566786,2644.4,2644.3,0.75597]
[1748391675230,0.00566786,2644.4,2644.0,3.8593]
[1748391675537,0.00566786,2644.4,2644.3,0.75597]
[1748391675829,3.21346786,2644.4,2644.3,0.75597]
[1748391678230,3.21346786,2644.4,2644.3,4.177]
[1748391679035,3.21346786,2644.4,2644.0,0.6515]
[1748391679229,3.96386,2644.1,2643.8,18.8181]
[1748391679430,3.96386,2644.1,2643.8,0.7561]
[1748391679628,3.2078,2644.1,2643.9,4.145]
[1748391679829,0.75606,2644.0,2643.9,4.145]
[1748391680829,1.89023,2643.9,2643.6,4.145]
[1748391681038,3.2078,2643.7,2643.6,4.90117]
[1748391682041,3.2078,2644.2,2644.1,0.75603]
[1748391682342,3.2078,2644.2,2644.1,4.90103]
[1748391683636,3.2078,2644.2,2644.1,22.97303]
[1748391685536,3.2078,2644.2,2644.1,23.64853]
[1748391686237,0.00566786,2644.4,2644.3,0.75597]
[1748391686431,0.00566786,2644.4,2644.3,0.82936423]
[1748391690430,0.00566786,2644.4,2644.3,4.03716423]
[1748391690627,0.00566786,2644.4,2644.3,9.03716423]
[1748391690836,3.2078,2645.2,2645.1,0.75574]
[1748391691032,3.2078,2645.2,2645.1,4.89974]
[1748391692333,3.2078,2645.2,2645.0,4.144]
[1748391692530,1.3162,2645.1,2645.0,4.89977]
[1748391692743,1.3162,2645.1,2645.0,6.22007]
[1748391693038,3.2078,2645.2,2645.1,0.75574]
[1748391695836,3.2078,2645.2,2645.1,0.82913423]
[1748391699745,3.2078,2645.2,2645.1,1.49493423]
[1748391702548,0.00368464,2645.4,2645.3,0.75569]
[1748391702944,4.64e-06,2645.4,2645.3,0.75569]
[1748391704242,4.64e-06,2645.4,2645.3,18.71369]
[1748391705940,4.64e-06,2645.4,2645.2,1.2456]
[1748391706142,4.64e-06,2645.4,2645.3,4.89869]
[1748391706541,4.64e-06,2645.4,2645.3,6.23959]
[1748391708642,4.64e-06,2645.4,2645.3,11.23959]
[1748391708842,4.64e-06,2645.4,2645.3,14.44739]
[1748391709749,3.2078,2646.0,2645.9,0.75552]
[1748391709950,3.2078,2646.0,2645.9,4.81852]
[1748391710246,3.2078,2646.3,2646.0,1.88873]
[1748391710450,3.2078,2646.3,2646.2,0.75543]
[1748391711145,1.2474,2646.7,2646.1,19.1783]
[1748391711346,1.2474,2646.7,2646.6,0.75532]
[1748391711653,1.2474,2646.7,2646.6,4.81832]
[1748391714152,1.2474,2646.7,2646.4,0.00566786]
[1748391714453,1.2474,2646.7,2646.6,0.75532]
[1748391717245,1.2474,2646.7,2646.6,2.10242]
[1748391717951,3.2078,2646.8,2646.7,0.75529]
[1748391718150,4.5302,2646.8,2646.7,0.75529]
[1748391719248,3.2078,2646.8,2646.7,0.75529]
[1748391719451,4.5302,2647.1,2647.0,0.7552]
[1748391719647,3.2078,2647.4,2647.3,0.75512]
[1748391719954,1.3224,2647.9,2647.8,0.75497]
[1748391720259,1.3224,2647.9,2647.6,0.00566786]
[1748391720552,3.2078,2647.8,2647.7,0.755]
[1748391720754,3.842,2647.8,2647.6,4.06766786]
[1748391720956,1.2564,2647.7,2647.6,4.82269786]
[1748391726059,3.8501,2648.1,2647.7,0.755]
[1748391726355,1.3174,2648.0,2647.9,0.75495]
[1748391727552,3.2078,2648.1,2648.0,0.75492]
[1748391727760,3.2078,2648.1,2648.0,4.81592]
[1748391728557,3.2078,2648.5,2648.2,1.88714]
[1748391728749,4.5252,2648.5,2648.4,0.7548]
[1748391728955,4.5252,2648.5,2648.4,4.8148]
[1748391730863,5.27997,2648.5,2648.4,4.06]
[1748391731065,4.5252,2648.5,2648.4,4.8148]
[1748391731258,5.27997,2648.5,2648.4,4.8148]
[1748391731458,4.5252,2648.5,2648.4,4.8148]
[1748391734165,4.5252,2648.5,2648.4,6.1792]
[1748391734553,3.2078,2648.5,2648.4,6.1792]
[1748391734859,3.2078,2648.8,2648.7,0.75472]
[1748391735061,3.2078,2649.1,2649.0,0.75463]
[1748391735258,45.2706,2649.1,2649.0,0.75463]
[1748391735459,4.4706,2649.1,2649.0,0.75463]
[1748391735957,4.4706,2649.1,2649.0,2.04323]
[1748391736657,44.0078,2649.4,2649.3,0.75455]
[1748391736863,3.2078,2649.4,2649.3,4.81355]
[1748391737057,0.6447,2649.7,2649.3,4.059]
[1748391737058,3.8525,2649.7,2649.3,4.059]
[1748391737255,3.2078,2649.7,2649.6,0.75446]
[1748391737454,3.2078,2650.0,2649.9,0.75438]
[1748391737655,3.2078,2650.0,2649.9,4.81338]
[1748391737855,3.2078,2650.0,2649.9,21.888]
[1748391738253,3.2078,2650.0,2649.9,4.059]
[1748391738566,3.96215,2650.0,2649.9,4.059]
[1748391738766,3.96215,2650.0,2649.9,4.05151227]
[1748391739266,3.96217,2650.0,2649.9,4.059]
[1748391739461,5.21117,2650.0,2649.9,4.81338]
[1748391739661,5.21117,2650.0,2649.9,4.059]
[1748391739868,3.2078,2650.0,2649.9,4.81338]
[1748391740162,3.96215,2650.0,2649.9,4.059]
[1748391740358,3.96215,2650.0,2649.9,4.81338]
[1748391740866,3.2078,2650.0,2649.9,4.81338]
[1748391741365,0.75438,2649.9,2649.8,4.77339]
[1748391741669,1.2843,2649.9,2649.8,4.77339]
[1748391742161,2.03868,2649.9,2649.8,4.77339]
[1748391742353,1.2843,2649.9,2649.8,4.77339]
[1748391744364,2.03868,2649.9,2649.8,4.77339]
[1748391744661,6.2843,2649.9,2649.4,0.75448]
[1748391744865,6.2843,2649.9,2649.4,0.75452]
[1748391744866,3.2078,2649.5,2649.4,0.75452]
[1748391745261,4.5703,2649.5,2649.4,0.75452]
[1748391745863,4.5703,2649.5,2649.4,2.03372]
[1748391746261,3.2078,2649.5,2649.4,2.03372]
[1748391746467,3.2078,2649.8,2649.7,0.82782423]
[1748391747165,3.2078,2649.8,2649.7,4.84682423]
[1748391747360,3.2078,2649.8,2649.7,4.77343]
[1748391748366,0.75432,2650.1,2649.7,4.77343]
[1748391748664,0.75432,2650.1,2649.8,19.8338]
[1748391748859,0.75432,2650.1,2650.0,0.75434]
[1748391749267,0.75432,2650.1,2650.0,2.10094]
[1748391750268,0.75432,2650.1,2650.0,1.3466]
[1748391750470,2.00212,2650.1,2650.0,1.3466]
[1748391751373,0.75438,2649.9,2649.8,0.75438]
[1748391751570,3.96218,2649.9,2649.8,4.77338]
[1748391751871,3.96219,2649.9,2649.8,4.77341]
[1748391752272,3.96219,2649.9,2649.8,4.019]
[1748391752676,3.96219,2649.9,2649.8,4.77341]
[1748391752875,3.96219,2649.9,2649.8,4.019]
[1748391753669,0.75452,2649.4,2649.3,0.6435]
[1748391753977,3.96232,2649.4,2649.3,0.75455]
[1748391754379,3.2078,2649.4,2649.3,0.75455]
[1748391754968,3.2078,2649.4,2649.3,2.10755]
[1748391756172,3.2078,2649.8,2649.7,0.75443]
[1748391756380,4.38084674,2649.8,2649.7,0.75443]
[1748391756579,5.13525674,2649.8,2649.7,0.75443]
[1748391757892,5.13588825,2649.8,2649.7,0.75443]
[1748391759691,3.2078,2649.8,2649.7,0.75443]
[1748391759991,3.2078,2649.8,2649.7,1.41363]
[1748391760894,3.96221,2649.8,2649.7,1.41363]
[1748391761393,0.75443,2649.7,2649.6,6.65035]
[1748391761589,0.75443,2649.7,2649.6,23.6519]
[1748391761789,0.75443,2649.7,2649.5,0.75448]
[1748391761790,0.75446,2649.6,2649.5,0.75448]
[1748391762186,0.75449,2649.5,2649.4,5.3047]
[1748391762382,3.96229,2649.5,2649.4,4.018]
[1748391762588,4.4956,2649.5,2649.4,4.018]
[1748391762987,3.2078,2649.5,2649.4,4.77252]
[1748391763385,4.38492887,2649.5,2649.4,21.795]
[1748391763593,5.13943887,2649.5,2649.4,4.018]
[1748391764591,5.13943887,2649.5,2649.4,4.77252]
[1748391766397,5.14119092,2649.5,2649.4,4.77252]
[1748391769185,3.96231,2649.5,2649.4,4.77252]
[1748391769694,3.2078,2649.5,2649.4,4.84591423]
[1748391770994,3.2078,2649.8,2649.7,0.75443]
[1748391771196,3.2078,2649.8,2649.7,22.46543]
[1748391771399,3.9621,2650.2,2650.1,0.75432]
[1748391771698,0.75429,2650.2,2650.1,4.71931]
[1748391773000,0.75429,2650.2,2650.1,3.965]
[1748391773501,0.75429,2650.2,2650.1,5.2003]
[1748391773700,2.04089,2650.2,2650.1,5.2003]
[1748391774098,2.04089,2650.2,2650.1,5.95462]
[1748391774401,2.04089,2650.2,2650.1,5.2003]
[1748391774698,2.04089,2650.2,2650.1,1.2353]
[1748391775602,1.2866,2650.2,2650.1,1.98962]
[1748391775802,3.2078,2650.5,2650.1,1.2353]
[1748391776103,0.75426,2650.4,2650.3,0.75423]
[1748391776400,2.05356,2650.4,2650.3,0.75423]
[1748391777402,0.75426,2650.3,2650.2,2.07286]
[1748391777602,2.05356,2650.4,2650.3,0.75426]
[1748391777798,2.05356,2650.4,2650.3,2.07286]
[1748391778004,2.05356,2650.4,2650.3,1.3186]
[1748391778201,1.2993,2650.4,2650.0,3.965]
[1748391778401,0.75431,2650.2,2650.1,1.3181]
[1748391780208,3.96211,2650.2,2650.1,1.3181]
[1748391780506,3.96211,2650.2,2650.1,2.07242]
[1748391781914,3.96211,2650.2,2649.7,0.6186]
[1748391781915,0.75441,2649.8,2649.7,0.6186]
[1748391782208,0.75441,2649.8,2649.3,3.2078]
[1748391782209,0.7545,2649.6,2649.3,3.2078]
[1748391782407,0.7545,2649.6,2649.5,0.75447]
[1748391782607,0.75444,2649.8,2649.7,0.75441]
[1748391782808,4.4526,2649.9,2649.4,24.85168]
[1748391782809,3.2078,2649.9,2649.8,0.75441]
[1748391783007,3.96218,2649.9,2649.8,4.71941]
[1748391783209,0.75436,2650.0,2649.9,0.75438]
[1748391783407,0.75434,2650.1,2650.0,0.75432]
[1748391783618,3.96211,2650.2,2650.1,0.75432]
[1748391784309,3.2078,2650.2,2650.1,0.75432]
[1748391784809,3.96209,2650.2,2650.1,0.75432]
[1748391785805,5.28849,2650.2,2650.1,0.75432]
[1748391786205,5.28849,2650.2,2649.6,1.88611]
[1748391786206,4.5342,2650.2,2649.5,5.09401]
[1748391786513,0.75439,2649.9,2649.8,0.75438]
[1748391787804,0.75439,2649.9,2649.6,1.3004]
[1748391787805,2.00617,2650.0,2649.9,0.75438]
[1748391788814,0.75434,2650.1,2650.0,0.75435]
[1748391789008,5.21391,2650.2,2650.1,0.75432]
[1748391789313,5.21389,2650.2,2650.1,0.75432]
[1748391789710,0.75432,2650.1,2650.0,1.3447]
[1748391790013,0.75432,2650.1,2650.0,2.09905]
[1748391790409,2.01592,2650.1,2650.0,2.09905]
[1748391791712,1.2616,2650.1,2650.0,2.09905]
[1748391791913,2.01592,2650.1,2650.0,2.09905]
[1748391792313,0.75432,2650.1,2650.0,2.09905]
[1748391795011,3.2078,2650.2,2650.0,2.09905]
[1748391795217,3.2078,2650.2,2650.1,0.75432]
[1748391796317,3.96209,2650.2,2650.1,0.75432]
[1748391796516,3.2078,2650.2,2650.1,4.71932]
[1748391797113,3.96209,2650.2,2650.1,4.71932]
[1748391798510,3.2078,2650.2,2650.1,4.71932]
[1748391799416,3.2078,2650.2,2650.1,22.39732]
[1748391801308,3.2078,2650.2,2650.1,22.47071423]
[1748391804416,3.2078,2650.2,2650.1,22.39732]
[1748391805420,3.2078,2650.2,2650.1,22.47071423]
[1748391807427,3.2078,2650.2,2650.1,4.79271423]
[1748391807621,3.96209,2650.2,2650.1,4.79271423]
[1748391808427,3.96209,2650.2,2650.1,4.71932]
[1748391810226,3.2078,2650.2,2650.1,4.71932]
[1748391811520,3.2078,2650.2,2650.1,4.79271423]
[1748391811922,3.96209,2650.2,2650.1,4.79271423]
[1748391812118,3.2078,2650.2,2650.1,4.79271423]
[1748391814027,3.96209,2650.2,2650.1,4.79271423]
[1748391814330,3.2078,2650.2,2650.1,4.79271423]
[1748391815730,3.96209,2650.2,2650.1,4.79271423]
[1748391818039,3.2078,2650.2,2650.1,4.79271423]
[1748391819337,2.68502,2650.5,2650.4,0.75423]
[1748391819729,0.6687,2650.6,2650.5,0.75421]
[1748391820040,0.75417,2650.7,2650.6,0.75414]
[1748391821835,2.12323,2650.8,2650.7,0.75415]
[1748391822433,0.75413,2650.8,2650.7,0.75415]
[1748391822633,1.39901,2650.9,2650.8,0.75412]
[1748391822832,1.39901,2650.9,2650.8,18.42712]
[1748391823437,0.6449,2650.9,2650.8,18.42712]
[1748391823637,1.39899,2650.9,2650.8,18.42712]
[1748391823935,0.6449,2650.9,2650.8,18.42712]
[1748391824134,45.42818,2651.0,2650.9,0.75409]
[1748391824339,45.42818,2651.0,2650.9,2.03929]
[1748391824539,3.8741,2651.0,2650.9,5.96529]
[1748391825835,3.8741,2651.0,2650.6,2.53544]
[1748391825836,0.75415,2650.7,2650.6,0.65]
[1748391826041,0.75415,2650.7,2650.6,22.8832]
[1748391826436,0.75415,2650.7,2650.6,23.63738]
[1748391827042,2.08471,2650.9,2650.8,0.75412]
[1748391827340,0.75414,2650.8,2650.7,0.75412]
[1748391827540,2.08554,2650.8,2650.7,0.75412]
[1748391828744,0.75418,2650.6,2650.5,0.00566786]
[1748391828936,3.96198,2650.6,2650.5,0.00566786]
[1748391829438,5.29338,2650.6,2650.5,0.00566786]
[1748391831940,5.29338,2650.6,2650.5,1.25686786]
[1748391832544,5.29338,2650.6,2650.5,0.00566786]
[1748391834045,0.75446,2649.6,2649.5,1.13352392]
[1748391834243,0.75446,2649.6,2649.5,1.3594]
[1748391834436,0.75446,2649.7,2649.6,0.75445]
[1748391835243,5.09384,2649.8,2649.4,0.00566786]
[1748391835551,0.75449,2649.5,2649.4,0.76015786]
[1748391836249,0.75449,2649.5,2649.4,2.05305786]
[1748391836843,0.75449,2649.5,2649.4,1.29856786]
[1748391837150,4.63599,2649.5,2649.4,0.00566786]
[1748391837337,5.29989,2649.5,2649.4,0.00566786]
[1748391840751,5.29989,2649.5,2649.4,1.25576786]
[1748391842155,5.29989,2649.5,2649.4,7.86e-06]
[1748391842447,10.29989,2649.5,2649.4,7.86e-06]